[Event "*** Titled Tuesday Blitz"]
[Site "Chess.com"]
[Date "2019.04.02"]
[Round "8"]
[White "Korchmar_Vasiliy"]
[Black "Annawel"]
[Result "1-0"]
[WhiteElo "2795"]
[BlackElo "2882"]
[TimeControl "180+2"]
[EndTime "15:51:09 PDT"]
[Termination "Korchmar_Vasiliy won by checkmate"]

1. d4 {[%clk 0:03:01.1]} 1... Nf6 {[%clk 0:02:59.6]} 2. c4 {[%clk 0:03:02.3]}
2... g6 {[%clk 0:03:01.2]} 3. Nc3 {[%clk 0:03:03.1]} 3... d5 {[%clk 0:03:02.8]}
4. Nf3 {[%clk 0:03:04.1]} 4... Bg7 {[%clk 0:03:02.4]} 5. Bf4 {[%clk 0:03:05.7]}
5... O-O {[%clk 0:02:56.6]} 6. e3 {[%clk 0:03:06.6]} 6... c5 {[%clk 0:02:49.9]}
7. dxc5 {[%clk 0:03:07]} 7... Qa5 {[%clk 0:02:50.1]} 8. Rc1 {[%clk 0:03:07.2]}
8... dxc4 {[%clk 0:02:47.8]} 9. Bxc4 {[%clk 0:03:09.1]} 9... Qxc5 {[%clk
0:02:41.5]} 10. Bb3 {[%clk 0:03:10.4]} 10... Bg4 {[%clk 0:02:35.2]} 11. h3
{[%clk 0:03:03]} 11... Qh5 {[%clk 0:02:34.9]} 12. O-O {[%clk 0:02:47]} 12...
Bxf3 {[%clk 0:02:35.8]} 13. Qxf3 {[%clk 0:02:48.9]} 13... Qxf3 {[%clk
0:02:37.1]} 14. gxf3 {[%clk 0:02:50.6]} 14... Nc6 {[%clk 0:02:38.1]} 15. Rfd1
{[%clk 0:02:39.6]} 15... Rfd8 {[%clk 0:02:33.5]} 16. Kf1 {[%clk 0:02:35.2]}
16... Kf8 {[%clk 0:02:29]} 17. Ke2 {[%clk 0:02:35.5]} 17... Ne8 {[%clk
0:02:14.9]} 18. Bd5 {[%clk 0:02:30.9]} 18... Rac8 {[%clk 0:02:11]} 19. Bxc6
{[%clk 0:02:21.1]} 19... Rxd1 {[%clk 0:02:11.7]} 20. Nxd1 {[%clk 0:02:23]} 20...
e5 {[%clk 0:02:00.6]} 21. Bg3 {[%clk 0:02:18.9]} 21... Rxc6 {[%clk 0:02:01.3]}
22. Rxc6 {[%clk 0:02:18.7]} 22... bxc6 {[%clk 0:02:03.2]} 23. f4 {[%clk
0:02:05.7]} 23... e4 {[%clk 0:02:00.7]} 24. f3 {[%clk 0:01:57]} 24... Nd6 {[%clk
0:01:53.5]} 25. Be1 {[%clk 0:01:49.3]} 25... exf3+ {[%clk 0:01:46.6]} 26. Kxf3
{[%clk 0:01:51.2]} 26... f5 {[%clk 0:01:48.3]} 27. Bb4 {[%clk 0:01:49.1]} 27...
Ke7 {[%clk 0:01:49.5]} 28. b3 {[%clk 0:01:38.5]} 28... Ke6 {[%clk 0:01:49.5]}
29. Bxd6 {[%clk 0:01:40]} 29... Kxd6 {[%clk 0:01:51.4]} 30. e4 {[%clk
0:01:37.1]} 30... fxe4+ {[%clk 0:01:41.5]} 31. Kxe4 {[%clk 0:01:39]} 31... Kc5
{[%clk 0:01:42.9]} 32. Ne3 {[%clk 0:01:21.1]} 32... a5 {[%clk 0:01:44]} 33. f5
{[%clk 0:00:50.5]} 33... gxf5+ {[%clk 0:01:36.6]} 34. Nxf5 {[%clk 0:00:52.4]}
34... Bf6 {[%clk 0:01:18.9]} 35. Ne3 {[%clk 0:00:48.5]} 35... Kb4 {[%clk
0:01:18.7]} 36. Nc2+ {[%clk 0:00:30.5]} 36... Kc3 {[%clk 0:01:17.7]} 37. Ne3
{[%clk 0:00:31.8]} 37... Bd8 {[%clk 0:00:40.6]} 38. Nc4 {[%clk 0:00:29.3]} 38...
a4 {[%clk 0:00:41.5]} 39. Ne5 {[%clk 0:00:30.3]} 39... a3 {[%clk 0:00:39.4]} 40.
Nxc6 {[%clk 0:00:27.9]} 40... Bb6 {[%clk 0:00:40.6]} 41. Ne5 {[%clk 0:00:13.5]}
41... Kb2 {[%clk 0:00:32.1]} 42. Kd3 {[%clk 0:00:08.9]} 42... Bc5 {[%clk
0:00:19]} 43. Nc4+ {[%clk 0:00:06.3]} 43... Kxa2 {[%clk 0:00:10.4]} 44. Kc2
{[%clk 0:00:07.3]} 44... h5 {[%clk 0:00:11.8]} 45. Ne5 {[%clk 0:00:07.3]} 45...
h4 {[%clk 0:00:12.5]} 46. Nc6 {[%clk 0:00:07.3]} 46... Ka1 {[%clk 0:00:12.3]}
47. b4 {[%clk 0:00:04.9]} 47... Bb6 {[%clk 0:00:03.8]} 48. b5 {[%clk 0:00:04.6]}
48... a2 {[%clk 0:00:03.7]} 49. Nb4 {[%clk 0:00:03.4]} 49... Bc5 {[%clk
0:00:04.5]} 50. Nd3 {[%clk 0:00:04.5]} 50... Be3 {[%clk 0:00:05.1]} 51. Ne5
{[%clk 0:00:04.5]} 51... Bd4 {[%clk 0:00:03.8]} 52. Nc4 {[%clk 0:00:05.4]} 52...
Be3 {[%clk 0:00:03.3]} 53. Na5 {[%clk 0:00:06.1]} 53... Bb6 {[%clk 0:00:04]} 54.
Nb3# {[%clk 0:00:08]} 1-0

[Event "*** Titled Tuesday Blitz"]
[Site "Chess.com"]
[Date "2019.04.02"]
[Round "8"]
[White "kasparicy"]
[Black "ENEASZ"]
[Result "1-0"]
[WhiteElo "2359"]
[BlackElo "2422"]
[TimeControl "180+2"]
[EndTime "15:51:12 PDT"]
[Termination "kasparicy won by resignation"]

1. e4 {[%clk 0:03:01.9]} 1... d6 {[%clk 0:03:00.9]} 2. d4 {[%clk 0:03:02.1]}
2... Nf6 {[%clk 0:03:02]} 3. Nc3 {[%clk 0:03:03.2]} 3... e5 {[%clk 0:03:03.4]}
4. f4 {[%clk 0:03:03.2]} 4... exd4 {[%clk 0:02:56.8]} 5. Qxd4 {[%clk 0:03:05.1]}
5... Nbd7 {[%clk 0:02:53.8]} 6. Nf3 {[%clk 0:03:05]} 6... c6 {[%clk 0:02:54.9]}
7. Bc4 {[%clk 0:02:57.3]} 7... Be7 {[%clk 0:02:53.1]} 8. Bb3 {[%clk 0:02:24.9]}
8... O-O {[%clk 0:02:52.2]} 9. Be3 {[%clk 0:02:21.3]} 9... Nc5 {[%clk
0:02:34.4]} 10. O-O {[%clk 0:02:17]} 10... Nxb3 {[%clk 0:02:20.4]} 11. axb3
{[%clk 0:01:56.6]} 11... a6 {[%clk 0:02:08]} 12. Rad1 {[%clk 0:01:51.2]} 12...
Be6 {[%clk 0:02:00.7]} 13. h3 {[%clk 0:01:42.1]} 13... Qc7 {[%clk 0:01:18.3]}
14. Qd2 {[%clk 0:01:38]} 14... d5 {[%clk 0:01:05.1]} 15. e5 {[%clk 0:01:32.3]}
15... Ne4 {[%clk 0:01:02.8]} 16. Nxe4 {[%clk 0:01:32.8]} 16... dxe4 {[%clk
0:01:04.7]} 17. Nd4 {[%clk 0:01:34.3]} 17... Rad8 {[%clk 0:00:56.6]} 18. Qf2
{[%clk 0:01:34.4]} 18... c5 {[%clk 0:00:49.7]} 19. Ne2 {[%clk 0:01:17.8]} 19...
Bd5 {[%clk 0:00:46.2]} 20. Nc3 {[%clk 0:01:15.5]} 20... Bc6 {[%clk 0:00:43.8]}
21. Bxc5 {[%clk 0:01:13.4]} 21... Bxc5 {[%clk 0:00:36.1]} 22. Qxc5 {[%clk
0:01:15.3]} 22... Qc8 {[%clk 0:00:31.9]} 23. Rxd8 {[%clk 0:01:10]} 23... Rxd8
{[%clk 0:00:33.8]} 24. Rd1 {[%clk 0:01:11]} 24... Rxd1+ {[%clk 0:00:33.9]} 25.
Nxd1 {[%clk 0:01:12.9]} 25... h5 {[%clk 0:00:31.2]} 26. Ne3 {[%clk 0:01:13.4]}
26... Qd8 {[%clk 0:00:31]} 27. Qd6 {[%clk 0:01:01.3]} 27... Qa5 {[%clk
0:00:27.6]} 28. Qd1 {[%clk 0:00:54.3]} 28... Qc5 {[%clk 0:00:27.3]} 29. Kf2
{[%clk 0:00:53.4]} 29... h4 {[%clk 0:00:28.2]} 30. c3 {[%clk 0:00:52]} 30... Qe7
{[%clk 0:00:22.9]} 31. Qd6 {[%clk 0:00:46.3]} 31... Qe8 {[%clk 0:00:13.9]} 32.
f5 {[%clk 0:00:46.1]} 32... Qc8 {[%clk 0:00:11.5]} 33. e6 {[%clk 0:00:44.1]}
33... fxe6 {[%clk 0:00:11]} 34. fxe6 {[%clk 0:00:37.8]} 34... Qf8+ {[%clk
0:00:09]} 35. Qxf8+ {[%clk 0:00:38.3]} 35... Kxf8 {[%clk 0:00:10.9]} 36. Nf5
{[%clk 0:00:39.8]} 36... g5 {[%clk 0:00:11.9]} 37. Nd4 {[%clk 0:00:34.1]} 37...
Be8 {[%clk 0:00:07.7]} 38. Ke3 {[%clk 0:00:34.4]} 38... Bg6 {[%clk 0:00:08.8]}
39. b4 {[%clk 0:00:21.5]} 39... Ke7 {[%clk 0:00:09.7]} 40. c4 {[%clk 0:00:21.6]}
40... Kd6 {[%clk 0:00:05.4]} 41. c5+ {[%clk 0:00:21.5]} 41... Ke7 {[%clk
0:00:05.8]} 42. b3 {[%clk 0:00:21.4]} 42... Bh7 {[%clk 0:00:05.9]} 43. Kd2
{[%clk 0:00:20.8]} 43... Bg6 {[%clk 0:00:06.1]} 44. Ke3 {[%clk 0:00:22.2]} 44...
Kf6 {[%clk 0:00:06.6]} 45. c6 {[%clk 0:00:22.3]} 45... bxc6 {[%clk 0:00:08.5]}
46. Nxc6 {[%clk 0:00:23.9]} 46... Kxe6 {[%clk 0:00:09.3]} 47. Nb8 {[%clk
0:00:25.2]} 47... Ke5 {[%clk 0:00:08.1]} 48. Nxa6 {[%clk 0:00:26.4]} 48... Bf7
{[%clk 0:00:08.3]} 49. Nc5 {[%clk 0:00:28.3]} 49... Be8 {[%clk 0:00:08.4]} 50.
Nxe4 {[%clk 0:00:27.7]} 50... Bc6 {[%clk 0:00:09]} 51. Nxg5 {[%clk 0:00:25.4]}
51... Bxg2 {[%clk 0:00:10]} 52. Kf2 {[%clk 0:00:24.8]} 52... Bd5 {[%clk
0:00:09]} 53. Nf3+ {[%clk 0:00:25.2]} 53... Kf4 {[%clk 0:00:05.9]} 54. Nxh4
{[%clk 0:00:27.1]} 54... Bxb3 {[%clk 0:00:05.4]} 55. Ng2+ {[%clk 0:00:27.7]}
55... Kg5 {[%clk 0:00:05.6]} 56. h4+ {[%clk 0:00:28.2]} 56... Kg4 {[%clk
0:00:06.3]} 57. b5 {[%clk 0:00:28]} 57... Bd5 {[%clk 0:00:07.4]} 58. b6 {[%clk
0:00:29.1]} 58... Kf5 {[%clk 0:00:07.8]} 59. Ne3+ {[%clk 0:00:29.9]} 1-0

[Event "*** Titled Tuesday Blitz"]
[Site "Chess.com"]
[Date "2019.04.02"]
[Round "8"]
[White "dreamist"]
[Black "Hikaru"]
[Result "1-0"]
[WhiteElo "2759"]
[BlackElo "3162"]
[TimeControl "180+2"]
[EndTime "15:51:20 PDT"]
[Termination "dreamist won by resignation"]

1. e4 {[%clk 0:03:01]} 1... e5 {[%clk 0:02:52.1]} 2. Nf3 {[%clk 0:03:01.5]} 2...
Nc6 {[%clk 0:02:52.7]} 3. Bb5 {[%clk 0:03:02.1]} 3... Nf6 {[%clk 0:02:53.5]} 4.
O-O {[%clk 0:03:02.1]} 4... Nxe4 {[%clk 0:02:54.6]} 5. Re1 {[%clk 0:02:59.2]}
5... Nd6 {[%clk 0:02:55.5]} 6. Nxe5 {[%clk 0:02:59]} 6... Be7 {[%clk 0:02:56.8]}
7. Bf1 {[%clk 0:02:54.7]} 7... Nf5 {[%clk 0:02:57.6]} 8. c3 {[%clk 0:02:47.2]}
8... Nxe5 {[%clk 0:02:56.1]} 9. Rxe5 {[%clk 0:02:47.8]} 9... d6 {[%clk
0:02:57.5]} 10. Re1 {[%clk 0:02:48.5]} 10... O-O {[%clk 0:02:58.2]} 11. d4
{[%clk 0:02:49.4]} 11... d5 {[%clk 0:02:59.5]} 12. Bf4 {[%clk 0:02:49.4]} 12...
Bd6 {[%clk 0:02:59.5]} 13. Bxd6 {[%clk 0:02:47.1]} 13... Nxd6 {[%clk 0:03:00.6]}
14. Bd3 {[%clk 0:02:43.3]} 14... c6 {[%clk 0:02:59]} 15. Nd2 {[%clk 0:02:40.7]}
15... Qg5 {[%clk 0:02:58.7]} 16. Nf3 {[%clk 0:02:37.9]} 16... Qh6 {[%clk
0:02:59.1]} 17. Qd2 {[%clk 0:02:33.6]} 17... Qxd2 {[%clk 0:02:57.8]} 18. Nxd2
{[%clk 0:02:34.1]} 18... f6 {[%clk 0:02:57.3]} 19. Re7 {[%clk 0:02:27.3]} 19...
Rf7 {[%clk 0:02:58.3]} 20. Rae1 {[%clk 0:02:24.5]} 20... Kf8 {[%clk 0:02:56.5]}
21. R7e2 {[%clk 0:02:15.6]} 21... g6 {[%clk 0:02:54.6]} 22. g3 {[%clk
0:02:05.9]} 22... b6 {[%clk 0:02:51.1]} 23. Kg2 {[%clk 0:02:03.3]} 23... a5
{[%clk 0:02:51.9]} 24. c4 {[%clk 0:02:00.3]} 24... Ba6 {[%clk 0:02:50]} 25. b3
{[%clk 0:02:01]} 25... Rd8 {[%clk 0:02:50.3]} 26. h4 {[%clk 0:01:55.4]} 26...
dxc4 {[%clk 0:02:29]} 27. bxc4 {[%clk 0:01:54.2]} 27... Bc8 {[%clk 0:02:30.3]}
28. Nf3 {[%clk 0:01:48.9]} 28... Bg4 {[%clk 0:02:27.2]} 29. Rb2 {[%clk
0:01:46.8]} 29... Bxf3+ {[%clk 0:02:21.1]} 30. Kxf3 {[%clk 0:01:47.5]} 30... Nc8
{[%clk 0:02:22.7]} 31. Be4 {[%clk 0:01:23.5]} 31... Rc7 {[%clk 0:02:13.1]} 32.
Rd1 {[%clk 0:01:20.2]} 32... c5 {[%clk 0:01:51.8]} 33. d5 {[%clk 0:01:15.8]}
33... Re7 {[%clk 0:01:53]} 34. Bd3 {[%clk 0:01:13.2]} 34... Kg7 {[%clk
0:01:52.7]} 35. g4 {[%clk 0:01:09.2]} 35... Rb7 {[%clk 0:01:45.1]} 36. Re1
{[%clk 0:01:04.4]} 36... Kf7 {[%clk 0:01:34.5]} 37. h5 {[%clk 0:00:59.4]} 37...
Nd6 {[%clk 0:01:29]} 38. hxg6+ {[%clk 0:00:54.2]} 38... hxg6 {[%clk 0:01:30.9]}
39. a4 {[%clk 0:00:49.4]} 39... Re8 {[%clk 0:01:28.4]} 40. Rxe8 {[%clk
0:00:47.6]} 40... Nxe8 {[%clk 0:01:30.3]} 41. Re2 {[%clk 0:00:43.5]} 41... Ng7
{[%clk 0:01:07.5]} 42. Re1 {[%clk 0:00:37.3]} 42... g5 {[%clk 0:00:57.7]} 43.
Kg3 {[%clk 0:00:35.1]} 43... Rb8 {[%clk 0:00:53.9]} 44. f3 {[%clk 0:00:32]}
44... Re8 {[%clk 0:00:47.6]} 45. Rb1 {[%clk 0:00:25.7]} 45... Rb8 {[%clk
0:00:48.8]} 46. Re1 {[%clk 0:00:24.6]} 46... Rb7 {[%clk 0:00:48.6]} 47. Re2
{[%clk 0:00:22.9]} 47... Kf8 {[%clk 0:00:48.2]} 48. Re1 {[%clk 0:00:23.6]} 48...
Rd7 {[%clk 0:00:45.4]} 49. f4 {[%clk 0:00:22.3]} 49... Re7 {[%clk 0:00:46.3]}
50. Rxe7 {[%clk 0:00:16.1]} 50... Kxe7 {[%clk 0:00:48.2]} 51. Bg6 {[%clk
0:00:16.3]} 51... Kd7 {[%clk 0:00:34.2]} 52. Kf3 {[%clk 0:00:16.5]} 52... Ke7
{[%clk 0:00:33.2]} 53. fxg5 {[%clk 0:00:12.2]} 53... fxg5 {[%clk 0:00:35.1]} 54.
Ke4 {[%clk 0:00:11.6]} 54... Kf6 {[%clk 0:00:36.6]} 55. Bh5 {[%clk 0:00:11.1]}
55... Ke7 {[%clk 0:00:27.2]} 56. Ke5 {[%clk 0:00:12]} 56... Kd7 {[%clk 0:00:23]}
57. Bf7 {[%clk 0:00:08.1]} 57... Ke7 {[%clk 0:00:19.9]} 58. Bg6 {[%clk
0:00:09.2]} 58... Ne8 {[%clk 0:00:20.4]} 59. Bxe8 {[%clk 0:00:09.3]} 59... Kxe8
{[%clk 0:00:22.1]} 60. Kf5 {[%clk 0:00:10.2]} 60... b5 {[%clk 0:00:22.4]} 61.
cxb5 {[%clk 0:00:11]} 61... Kd7 {[%clk 0:00:22.8]} 1-0

[Event "*** Titled Tuesday Blitz"]
[Site "Chess.com"]
[Date "2019.04.02"]
[Round "8"]
[White "SolidAsARook"]
[Black "GCamachoMartinez"]
[Result "1-0"]
[WhiteElo "2251"]
[BlackElo "2335"]
[TimeControl "180+2"]
[EndTime "15:51:22 PDT"]
[Termination "SolidAsARook won by resignation"]

1. c4 {[%clk 0:03:01.9]} 1... e5 {[%clk 0:02:55.8]} 2. g3 {[%clk 0:03:01.3]}
2... Nc6 {[%clk 0:02:56.3]} 3. Bg2 {[%clk 0:03:02.7]} 3... g6 {[%clk 0:02:57.8]}
4. Nc3 {[%clk 0:03:03.9]} 4... Bg7 {[%clk 0:02:59]} 5. e4 {[%clk 0:03:05.6]}
5... Nge7 {[%clk 0:02:58.4]} 6. Nge2 {[%clk 0:03:07]} 6... O-O {[%clk
0:02:58.3]} 7. O-O {[%clk 0:03:08.6]} 7... d6 {[%clk 0:02:58.3]} 8. d3 {[%clk
0:03:10.1]} 8... Nd4 {[%clk 0:02:32.4]} 9. Be3 {[%clk 0:03:03.7]} 9... Nec6
{[%clk 0:02:30.4]} 10. h3 {[%clk 0:03:02.6]} 10... Be6 {[%clk 0:01:57]} 11. Kh2
{[%clk 0:02:44.2]} 11... Qd7 {[%clk 0:01:56.8]} 12. f4 {[%clk 0:02:26.6]} 12...
exf4 {[%clk 0:01:52.8]} 13. Nxf4 {[%clk 0:02:05.9]} 13... Rae8 {[%clk
0:01:04.3]} 14. Qd2 {[%clk 0:02:03.4]} 14... Kh8 {[%clk 0:00:35.4]} 15. Rab1
{[%clk 0:02:02.7]} 15... f5 {[%clk 0:00:32]} 16. b4 {[%clk 0:02:02.1]} 16...
fxe4 {[%clk 0:00:32.2]} 17. Nxe4 {[%clk 0:02:01.7]} 17... Bf5 {[%clk 0:00:28.4]}
18. b5 {[%clk 0:01:51.3]} 18... Nd8 {[%clk 0:00:29]} 19. g4 {[%clk 0:01:19.4]}
19... Bxe4 {[%clk 0:00:28.4]} 20. Bxe4 {[%clk 0:01:19.9]} 20... Be5 {[%clk
0:00:30.3]} 21. Kh1 {[%clk 0:01:16.9]} 21... N8e6 {[%clk 0:00:30.2]} 22. Nxe6
{[%clk 0:01:04.1]} 22... Qxe6 {[%clk 0:00:23.6]} 23. Bh6 {[%clk 0:00:59.4]}
23... Rxf1+ {[%clk 0:00:23.2]} 24. Rxf1 {[%clk 0:01:00]} 24... c6 {[%clk
0:00:23.5]} 25. bxc6 {[%clk 0:00:59.5]} 25... bxc6 {[%clk 0:00:24.6]} 26. Qf2
{[%clk 0:00:52.6]} 26... c5 {[%clk 0:00:13.6]} 27. Bd5 {[%clk 0:00:47]} 27...
Qe7 {[%clk 0:00:14.6]} 28. Qf7 {[%clk 0:00:38.5]} 28... Qxf7 {[%clk 0:00:15.2]}
29. Rxf7 {[%clk 0:00:39.1]} 29... Ne2 {[%clk 0:00:12.9]} 30. Kg2 {[%clk
0:00:34.6]} 30... Nd4 {[%clk 0:00:12.7]} 31. Rxa7 {[%clk 0:00:33.2]} 31... Rb8
{[%clk 0:00:14]} 32. Ra8 {[%clk 0:00:21.2]} 32... Rxa8 {[%clk 0:00:14.3]} 33.
Bxa8 {[%clk 0:00:23.1]} 33... Bg7 {[%clk 0:00:13.9]} 34. Bf4 {[%clk 0:00:21.5]}
34... Be5 {[%clk 0:00:12.8]} 35. Bxe5+ {[%clk 0:00:22.6]} 35... dxe5 {[%clk
0:00:14.5]} 36. Be4 {[%clk 0:00:23]} 36... Kg7 {[%clk 0:00:15.1]} 37. a4 {[%clk
0:00:24.2]} 37... Nb3 {[%clk 0:00:15.1]} 38. Bd5 {[%clk 0:00:22.4]} 38... Kf6
{[%clk 0:00:14.6]} 39. h4 {[%clk 0:00:22.9]} 39... e4 {[%clk 0:00:14.4]} 40.
Bxe4 {[%clk 0:00:23]} 40... Ke5 {[%clk 0:00:15.3]} 41. Kg3 {[%clk 0:00:20.9]}
41... Na5 {[%clk 0:00:09.5]} 42. h5 {[%clk 0:00:19.4]} 42... gxh5 {[%clk
0:00:10]} 43. g5 {[%clk 0:00:20.2]} 43... h6 {[%clk 0:00:05.3]} 44. g6 {[%clk
0:00:20.5]} 44... Kf6 {[%clk 0:00:07]} 45. Kh4 {[%clk 0:00:21.8]} 45... Nb3
{[%clk 0:00:06.7]} 46. Kxh5 {[%clk 0:00:22.7]} 46... Kg7 {[%clk 0:00:07.9]} 47.
Kg4 {[%clk 0:00:23.4]} 47... Na5 {[%clk 0:00:07.5]} 48. Kf4 {[%clk 0:00:24.6]}
48... Kf6 {[%clk 0:00:08.7]} 49. Kg4 {[%clk 0:00:19.7]} 49... Nb3 {[%clk
0:00:09.4]} 50. Kh5 {[%clk 0:00:20.3]} 50... Kg7 {[%clk 0:00:10.5]} 51. Bd5
{[%clk 0:00:21.2]} 51... Na5 {[%clk 0:00:11.4]} 52. Be6 {[%clk 0:00:21.7]} 52...
Nb3 {[%clk 0:00:11.8]} 53. Bd5 {[%clk 0:00:23.2]} 53... Na5 {[%clk 0:00:12.7]}
54. Be4 {[%clk 0:00:25.1]} 54... Nb3 {[%clk 0:00:13.7]} 55. Kg4 {[%clk 0:00:27]}
55... Kf6 {[%clk 0:00:14.6]} 56. Kf4 {[%clk 0:00:28.9]} 56... Na5 {[%clk
0:00:14.6]} 57. Ke3 {[%clk 0:00:30.2]} 57... Nb3 {[%clk 0:00:12.7]} 58. Ke2
{[%clk 0:00:30.9]} 58... h5 {[%clk 0:00:11.7]} 59. Kf3 {[%clk 0:00:30.8]} 59...
Na5 {[%clk 0:00:09.7]} 60. Kg3 {[%clk 0:00:31.8]} 60... Nb3 {[%clk 0:00:07.2]}
61. Kh4 {[%clk 0:00:33.1]} 61... Na5 {[%clk 0:00:05.3]} 62. Kxh5 {[%clk
0:00:34.4]} 62... Kg7 {[%clk 0:00:05.3]} 63. Kg5 {[%clk 0:00:35.6]} 1-0

[Event "*** Titled Tuesday Blitz"]
[Site "Chess.com"]
[Date "2019.04.02"]
[Round "8"]
[White "Alex_Molchanov"]
[Black "MMSANCHEZ"]
[Result "1-0"]
[WhiteElo "2493"]
[BlackElo "2461"]
[TimeControl "180+2"]
[EndTime "15:51:33 PDT"]
[Termination "Alex_Molchanov won by resignation"]

1. c4 {[%clk 0:03:01.9]} 1... e5 {[%clk 0:03:00.2]} 2. g3 {[%clk 0:03:02.2]}
2... Nf6 {[%clk 0:03:01.5]} 3. Bg2 {[%clk 0:03:02.5]} 3... d5 {[%clk 0:03:02.8]}
4. cxd5 {[%clk 0:03:03]} 4... Nxd5 {[%clk 0:03:04.7]} 5. Nc3 {[%clk 0:03:04.5]}
5... Nb6 {[%clk 0:03:06.1]} 6. e3 {[%clk 0:03:06.1]} 6... Nc6 {[%clk 0:03:07.5]}
7. Nge2 {[%clk 0:03:07.3]} 7... Be7 {[%clk 0:03:08.9]} 8. O-O {[%clk 0:03:08.6]}
8... O-O {[%clk 0:03:10.4]} 9. f4 {[%clk 0:03:10.3]} 9... f6 {[%clk 0:02:59.6]}
10. b3 {[%clk 0:03:04.2]} 10... Be6 {[%clk 0:02:59.2]} 11. Bb2 {[%clk
0:03:00.4]} 11... Qd7 {[%clk 0:02:58.7]} 12. Rc1 {[%clk 0:02:52.8]} 12... Rad8
{[%clk 0:02:58.9]} 13. fxe5 {[%clk 0:02:41.3]} 13... fxe5 {[%clk 0:03:00.8]} 14.
Rxf8+ {[%clk 0:02:40.4]} 14... Bxf8 {[%clk 0:02:58.5]} 15. Ne4 {[%clk
0:02:40.3]} 15... Qd3 {[%clk 0:02:29.4]} 16. N2c3 {[%clk 0:02:26.8]} 16... h6
{[%clk 0:02:15.4]} 17. Qh5 {[%clk 0:01:59.8]} 17... Bf7 {[%clk 0:02:00.5]} 18.
Qg4 {[%clk 0:01:58.2]} 18... Be7 {[%clk 0:01:51.2]} 19. Rf1 {[%clk 0:01:35.1]}
19... Qd7 {[%clk 0:01:49.9]} 20. Qf3 {[%clk 0:01:31.1]} 20... Bg6 {[%clk
0:01:50.6]} 21. h4 {[%clk 0:01:23]} 21... Rf8 {[%clk 0:01:46.7]} 22. Qe2 {[%clk
0:01:22.3]} 22... Rxf1+ {[%clk 0:01:47]} 23. Qxf1 {[%clk 0:01:24.2]} 23... Nb4
{[%clk 0:01:46.4]} 24. Bh3 {[%clk 0:01:23.8]} 24... Qc6 {[%clk 0:01:43.8]} 25.
Bg2 {[%clk 0:01:19.7]} 25... Qd7 {[%clk 0:01:36.2]} 26. Ba3 {[%clk 0:01:20.6]}
26... a5 {[%clk 0:01:29.2]} 27. Bh3 {[%clk 0:01:04.7]} 27... Qc6 {[%clk
0:01:27.9]} 28. Bg2 {[%clk 0:01:05.2]} 28... Qd7 {[%clk 0:01:28.4]} 29. Qb5
{[%clk 0:01:00]} 29... Qxb5 {[%clk 0:01:15.3]} 30. Nxb5 {[%clk 0:01:01.9]} 30...
c6 {[%clk 0:01:12.3]} 31. Nbc3 {[%clk 0:00:51]} 31... Kf7 {[%clk 0:01:12.3]} 32.
Bb2 {[%clk 0:00:45.1]} 32... Nd3 {[%clk 0:01:12.2]} 33. Ba1 {[%clk 0:00:46.2]}
33... Bf5 {[%clk 0:01:05]} 34. Bf1 {[%clk 0:00:46.7]} 34... Nb4 {[%clk
0:01:05.8]} 35. Nf2 {[%clk 0:00:37.5]} 35... Be6 {[%clk 0:01:03.3]} 36. Bb2
{[%clk 0:00:33.8]} 36... N4d5 {[%clk 0:00:51.1]} 37. Nfd1 {[%clk 0:00:25.2]}
37... Nf6 {[%clk 0:00:37.9]} 38. Ne2 {[%clk 0:00:20.6]} 38... Bd6 {[%clk
0:00:38.3]} 39. Nec3 {[%clk 0:00:20.4]} 39... Nbd5 {[%clk 0:00:36.8]} 40. Nxd5
{[%clk 0:00:20.8]} 40... cxd5 {[%clk 0:00:37.9]} 41. Nc3 {[%clk 0:00:20.2]}
41... e4 {[%clk 0:00:37.5]} 42. Nb5 {[%clk 0:00:20.5]} 42... Bxg3 {[%clk
0:00:35.5]} 43. Bc3 {[%clk 0:00:20]} 43... b6 {[%clk 0:00:33.7]} 44. Bd4 {[%clk
0:00:21.4]} 44... Nd7 {[%clk 0:00:31.6]} 45. h5 {[%clk 0:00:19]} 45... Bg4
{[%clk 0:00:32.3]} 46. Nc3 {[%clk 0:00:19.8]} 46... Be6 {[%clk 0:00:17.9]} 47.
Bb5 {[%clk 0:00:17.6]} 47... Nc5 {[%clk 0:00:18.7]} 48. Bc6 {[%clk 0:00:15.4]}
48... Be1 {[%clk 0:00:19.2]} 49. Nxd5 {[%clk 0:00:16]} 49... Bxd2 {[%clk
0:00:17.2]} 50. Nxb6 {[%clk 0:00:16.2]} 50... Nd3 {[%clk 0:00:17.6]} 51. Bxe4
{[%clk 0:00:15.6]} 51... Nc1 {[%clk 0:00:19.1]} 52. Bb1 {[%clk 0:00:13.9]} 52...
Bg4 {[%clk 0:00:16]} 53. Nc4 {[%clk 0:00:11.9]} 53... Bxh5 {[%clk 0:00:15.7]}
54. Nxd2 {[%clk 0:00:12.4]} 54... g5 {[%clk 0:00:16]} 55. Kf2 {[%clk 0:00:13.7]}
55... Ne2 {[%clk 0:00:16.8]} 56. Be5 {[%clk 0:00:14.5]} 56... Nc1 {[%clk
0:00:17.2]} 57. Nc4 {[%clk 0:00:14.5]} 57... Ke6 {[%clk 0:00:16.7]} 58. Bg7
{[%clk 0:00:14.8]} 58... a4 {[%clk 0:00:16.1]} 59. bxa4 {[%clk 0:00:14]} 59...
Bd1 {[%clk 0:00:17.2]} 60. a5 {[%clk 0:00:14.7]} 60... Kd5 {[%clk 0:00:19.1]}
61. Nd2 {[%clk 0:00:14.3]} 61... h5 {[%clk 0:00:17.8]} 62. a6 {[%clk 0:00:14.6]}
62... Kc6 {[%clk 0:00:19]} 63. Bd4 {[%clk 0:00:15.9]} 63... g4 {[%clk
0:00:15.6]} 64. Be4+ {[%clk 0:00:17.2]} 64... Kd6 {[%clk 0:00:16.3]} 65. a7
{[%clk 0:00:18.5]} 65... h4 {[%clk 0:00:17.9]} 66. a8=Q {[%clk 0:00:19.3]} 66...
g3+ {[%clk 0:00:19.8]} 67. Kg2 {[%clk 0:00:19.7]} 1-0